{"text_format":"1","workbook":"xlsx","n_sheets":11,"sheets":["Skema 1","Skema 2","Skema 3","Skema 4","Skema 5","Skema 6","Skema 7","Rapport","Rapport SGH","Afstemning af ikke fordelte","Nøgle"],"not_rendered":{"charts":0,"images":0,"macros":1,"external_links":0,"defined_names":20,"comments":0,"pivot_tables":0},"unopened":[],"bounds":{"document_bytes":16777216,"sheet_cells":100000,"rows_first":2000,"rows_last":500,"rows_between":2000,"halvings":0,"cell_chars":16384,"cell_head_chars":4096},"cells_cut":0,"cells_raw":0,"read":"whole","date_system":"1900"}

{"sheet":"Skema 1","index":0,"n_rows":35,"n_cols":9,"rows_kept":35,"cut":false,"hidden":false,"merged":[[1,1,2,8]]}
["Region Hovedstaden, psykiatriske sygehuse."]
[null,"Skema 1: Udgifter og indtægter på sygehusene/enhederne, eksklusiv omkostningssted 0001, Fælleskonto. (1.000 kr.)"]
[]
[]
["Sygehus",null,2023,2022,2021,2020,"Δ2022-2023","% afvigelse","Begrundelse"]
["Region Hovedstaden, Voksen psykiatrien"]
["Region Hovedstaden, Voksen psykiatrien","Hovedart 1: Lønninger",2926779.6258045929,2836633.6061363146,2663493.5651989039,2571690.4178253957,{"$f":"IF(ISERROR(C7- D7)=TRUE,\"\",C7 - D7)","v":90146.019668278284},{"$f":"IF(ISERROR((((C7- D7)/D7)*100)=TRUE),\"\",IF((((C7- D7)/D7)*100)<-7,FIXED(((C7- D7)/D7)*100, 1,TRUE) &\"%\" & \"▼\",IF((((C7- D7)/D7)*100)>7,FIXED(((C7- D7)/D7)*100, 1,TRUE) &\"%\" &\"▲\",FIXED(((C7- D7)/D7)*100, 1,TRUE)&\"%\")))","v":"3,2%"}]
["Region Hovedstaden, Voksen psykiatrien","Hovedart 2: Varekøb",62810.179046678451,76995.154850220773,113127.35879974294,79935.099493770438,-14184.975803542322,"-18,4%▼"]
["Region Hovedstaden, Voksen psykiatrien","Hovedart 4: Tjenesteydelser m.v. ",472768.71548406512,444910.40696755261,419035.36821295728,344297.33724990144,27858.308516512509,"6,3%"]
["Region Hovedstaden, Voksen psykiatrien","Hovedart 5: Tilskud og overførsler",2404.893978949568,2756.4434333124359,2966.4170936772589,1454.3165266155263,-351.54945436286789,"-12,8%▼"]
["Region Hovedstaden, Voksen psykiatrien","Hovedart 6: Finansudgifter",0,0,0,0,0,""]
["Region Hovedstaden, Voksen psykiatrien","Hovedart 7: Indtægter",-224195.67850144597,-229856.75269287868,-258132.18114016007,-190729.21161894262,5661.0741914327082,"-2,5%"]
["Region Hovedstaden, Voksen psykiatrien","Hovedart 8: Finansindtægter",0,0,0,0,0,""]
["Region Hovedstaden, Voksen psykiatrien","Hovedart 9: Interne udgifter og indtægter",0,0,0,0,0,""]
["Region Hovedstaden, Voksen psykiatrien","I alt",{"$f":"SUMIFS((C7:C14),(A7:A14),A15)","v":3240567.7358128401},{"$f":"SUMIFS((D7:D14),(A7:A14),A15)","v":3131438.8586945217},{"$f":"SUMIFS((E7:E14),(A7:A14),A15)","v":2940490.5281651216},{"$f":"SUMIFS((F7:F14),(A7:A14),A15)","v":2806647.9594767406},109128.87711831834,"3,5%"]
["Region Hovedstaden, Børn-unge psykiatrien",null,null,null,null,null,0,""]
["Region Hovedstaden, Børn-unge psykiatrien","Hovedart 1: Lønninger",509818.25172540534,466017.947883685,425158.46003109484,398484.02183460526,43800.303841720335,"9,4%▲"]
["Region Hovedstaden, Børn-unge psykiatrien","Hovedart 2: Varekøb",7536.8605633215429,11113.522819779218,11082.750310257006,10079.472436229575,-3576.6622564576755,"-32,2%▼"]
["Region Hovedstaden, Børn-unge psykiatrien","Hovedart 4: Tjenesteydelser m.v. ",49202.423845934958,53348.139692447439,54212.404307042816,45806.2543800985,-4145.7158465124812,"-7,8%▼"]
["Region Hovedstaden, Børn-unge psykiatrien","Hovedart 5: Tilskud og overførsler",87.173151050431699,68.156706687564153,66.49636632274084,105.39010338447378,19.016444362867546,"27,9%▲"]
["Region Hovedstaden, Børn-unge psykiatrien","Hovedart 6: Finansudgifter",0,0,0,0,0,""]
["Region Hovedstaden, Børn-unge psykiatrien","Hovedart 7: Indtægter",-21332.100308553883,-32048.986567121348,-51775.756519839902,-45556.677441057414,10716.886258567465,"-33,4%▼"]
["Region Hovedstaden, Børn-unge psykiatrien","Hovedart 8: Finansindtægter",0,0,0,0,0,""]
["Region Hovedstaden, Børn-unge psykiatrien","Hovedart 9: Interne udgifter og indtægter",0,0,0,0,0,""]
["Region Hovedstaden, Børn-unge psykiatrien","I alt",{"$f":"SUMIFS((C7:C24),(A7:A24),A25)","v":545312.60897715844},{"$f":"SUMIFS((D7:D24),(A7:A24),A25)","v":498498.7805354778},{"$f":"SUMIFS((E7:E24),(A7:A24),A25)","v":438744.35449487751},{"$f":"SUMIFS((F7:F24),(A7:A24),A25)","v":408918.46131326037},46813.828441680642,"9,4%▲"]
["Ikke fordelte udgifter i Region Hovedstaden, psykiatri",null,null,null,null,null,0,""]
["Ikke fordelte udgifter i Region Hovedstaden, psykiatri","Hovedart 1: Lønninger",null,null,null,null,0,""]
["Ikke fordelte udgifter i Region Hovedstaden, psykiatri","Hovedart 2: Varekøb",null,null,null,null,0,""]
["Ikke fordelte udgifter i Region Hovedstaden, psykiatri","Hovedart 4: Tjenesteydelser m.v. ",null,null,null,null,0,""]
["Ikke fordelte udgifter i Region Hovedstaden, psykiatri","Hovedart 5: Tilskud og overførsler",null,null,null,null,0,""]
["Ikke fordelte udgifter i Region Hovedstaden, psykiatri","Hovedart 6: Finansudgifter",null,null,null,null,0,""]
["Ikke fordelte udgifter i Region Hovedstaden, psykiatri","Hovedart 7: Indtægter",null,null,null,null,0,""]
["Ikke fordelte udgifter i Region Hovedstaden, psykiatri","Hovedart 8: Finansindtægter",null,null,null,null,0,""]
["Ikke fordelte udgifter i Region Hovedstaden, psykiatri","Hovedart 9: Interne udgifter og indtægter",null,null,null,null,0,""]
["Ikke fordelte udgifter i Region Hovedstaden, psykiatri","I alt",{"$f":"SUMIFS((C7:C34),(A7:A34),A35)","v":0},{"$f":"SUMIFS((D7:D34),(A7:A34),A35)","v":0},{"$f":"SUMIFS((E7:E34),(A7:A34),A35)","v":0},{"$f":"SUMIFS((F7:F34),(A7:A34),A35)","v":0},0,""]

{"sheet":"Skema 2","index":1,"n_rows":35,"n_cols":9,"rows_kept":35,"cut":false,"hidden":false,"merged":[[1,1,2,8]]}
["Region Hovedstaden, psykiatriske sygehuse."]
[null,"Skema 2: Fællesudgifter og -indtægter vedrørende sygehusene.\n(1.000 kr.)"]
[]
[]
["Sygehus",null,2023,2022,2021,2020,"Δ2022-2023","% afvigelse","Begrundelse"]
["Region Hovedstaden, Voksen psykiatrien"]
["Region Hovedstaden, Voksen psykiatrien","Hovedart 1: Lønninger",{"$f":"247112.750167636*Nøgle!F27","v":210453.64870765689},{"$f":"234485.664206863*Nøgle!F5","v":201398.75623171928},{"$f":"+('Skema 1'!E7/('Skema 1'!E7+'Skema 1'!E17))*(227732.263192288)","v":196384.51099251755},139811.6896437931,{"$f":"IF(ISERROR(C7- D7)=TRUE,\"\",C7 - D7)","v":9054.8924759376096},{"$f":"IF(ISERROR((((C7- D7)/D7)*100)=TRUE),\"\",IF((((C7- D7)/D7)*100)<-7,FIXED(((C7- D7)/D7)*100, 1,TRUE) &\"%\" & \"▼\",IF((((C7- D7)/D7)*100)>7,FIXED(((C7- D7)/D7)*100, 1,TRUE) &\"%\" &\"▲\",FIXED(((C7- D7)/D7)*100, 1,TRUE)&\"%\")))","v":"4,5%"}]
["Region Hovedstaden, Voksen psykiatrien","Hovedart 2: Varekøb",{"$f":"282539.825521685*Nøgle!F28","v":252268.99564244971},{"$f":"298113.883422191*Nøgle!F6","v":260511.50946857996},{"$f":"+('Skema 1'!E8/('Skema 1'!E8+'Skema 1'!E18))*349696.923187806","v":318494.92431891075},356512.66415975965,-8242.5138261302491,"-3,2%"]
["Region Hovedstaden, Voksen psykiatrien","Hovedart 4: Tjenesteydelser m.v. ",{"$f":"53548.2039704899*Nøgle!F29","v":48500.604152372536},{"$f":"(153676.911697849-15465.9374931691)*Nøgle!F7","v":123412.8369558032},{"$f":"+('Skema 1'!E9/('Skema 1'!E9+'Skema 1'!E19))*(247134.157931937-3405.74977447589)","v":215808.35491814904},126377.04806223443,-74912.23280343067,"-60,7%▼","COVID merudgifter udgifter bortfaldet"]
["Region Hovedstaden, Voksen psykiatrien","Hovedart 5: Tilskud og overførsler",{"$f":"20.4714654209393*Nøgle!F30","v":19.75536827978274},{"$f":"-7.05730363414842*Nøgle!F8","v":-6.887013132853701},{"$f":"+('Skema 1'!E10/('Skema 1'!E10+'Skema 1'!E20))*-23.3378505265572","v":-22.826170164335682},3.8731407119150596,26.642381412636439,"-386,8%▼"]
["Region Hovedstaden, Voksen psykiatrien","Hovedart 6: Finansudgifter",null,null,null,0,0,""]
["Region Hovedstaden, Voksen psykiatrien","Hovedart 7: Indtægter",{"$f":"-41569.2998279017*Nøgle!F32","v":-37957.649537319441},{"$f":"-52151.7098770644*Nøgle!F10","v":-45769.988521797728},{"$f":"+('Skema 1'!E12/('Skema 1'!E12+'Skema 1'!E22))*-85366.9885828899","v":-71104.880780576103},-30640.348646707789,7812.3389844782869,"-17,1%▼","Der er lavet efterregulering mellemregionalt for årene  2017 til 2022"]
["Region Hovedstaden, Voksen psykiatrien","Hovedart 8: Finansindtægter",{"$f":"+Nøgle!K35","v":-18809.833072946058},{"$f":"+Nøgle!K13","v":-57105.773935649951},{"$f":"+('Skema 1'!E12/('Skema 1'!E12+'Skema 1'!E22))*-212264.317344543","v":-176801.70320286075},-249065.58246227942,38295.940862703894,"-67,1%▼","2022 COVID kompensation"]
["Region Hovedstaden, Voksen psykiatrien","Hovedart 9: Interne udgifter og indtægter",null,null,null,0,0,""]
["Region Hovedstaden, Voksen psykiatrien","I alt",{"$f":"SUMIFS((C7:C14),(A7:A14),A15)","v":454475.52126049338},{"$f":"SUMIFS((D7:D14),(A7:A14),A15)","v":482440.45318552194},{"$f":"SUMIFS((E7:E14),(A7:A14),A15)","v":482758.38007597602},{"$f":"SUMIFS((F7:F14),(A7:A14),A15)","v":342999.34389751189},-27964.931925028563,"-5,8%"]
["Region Hovedstaden, Børn-unge psykiatrien",null,null,null,null,null,0,""]
["Region Hovedstaden, Børn-unge psykiatrien","Hovedart 1: Lønninger",{"$f":"247112.750167636*Nøgle!F37","v":36659.101459979101},{"$f":"234485.664206863*Nøgle!F15","v":33086.907975143724},{"$f":"+('Skema 1'!E17/('Skema 1'!E7+'Skema 1'!E17))*(227732.263192288)","v":31347.75219977045},21663.853472635514,3572.1934848353776,"10,8%▲"]
["Region Hovedstaden, Børn-unge psykiatrien","Hovedart 2: Varekøb",{"$f":"282539.825521685*Nøgle!F38","v":30270.829879235305},{"$f":"298113.883422191*Nøgle!F16","v":37602.373953611073},{"$f":"+('Skema 1'!E18/('Skema 1'!E8+'Skema 1'!E18))*349696.923187806","v":31201.998868895276},55241.719323852165,-7331.5440743757681,"-19,5%▼","COVID merudgifter udgifter bortfaldet"]
["Region Hovedstaden, Børn-unge psykiatrien","Hovedart 4: Tjenesteydelser m.v. ",{"$f":"53548.2039704899*Nøgle!F39","v":5047.5998181173627},{"$f":"(153676.911697849-15465.9374931691)*Nøgle!F17","v":14798.137248876692},{"$f":"+('Skema 1'!E19/('Skema 1'!E9+'Skema 1'!E19))*(247134.157931937-3405.74977447589)","v":27920.053239312034},19582.152669063369,-9750.5374307593302,"-65,9%▼"]
["Region Hovedstaden, Børn-unge psykiatrien","Hovedart 5: Tilskud og overførsler",{"$f":"20.4714654209393*Nøgle!F40","v":0.71609714115655909},{"$f":"-7.05730363414842*Nøgle!F18","v":-0.17029050129471934},{"$f":"+('Skema 1'!E20/('Skema 1'!E10+'Skema 1'!E20))*-23.3378505265572","v":-0.51168036222151825},0.60014404428987655,0.88638764245127843,"-520,5%▼"]
["Region Hovedstaden, Børn-unge psykiatrien","Hovedart 6: Finansudgifter",null,null,null,0,0,""]
["Region Hovedstaden, Børn-unge psykiatrien","Hovedart 7: Indtægter",{"$f":"-41569.2998279017*Nøgle!F42","v":-3611.6502905822508},{"$f":"-52151.7098770644*Nøgle!F20","v":-6381.7213552666708},{"$f":"+('Skema 1'!E22/('Skema 1'!E12+'Skema 1'!E22))*-85366.9885828899","v":-14262.107802313785},-4747.7290713238444,2770.07106468442,"-43,4%▼","Der er lavet efterregulering mellemregionalt for årene  2017 til 2022"]
["Region Hovedstaden, Børn-unge psykiatrien","Hovedart 8: Finansindtægter",{"$f":"+Nøgle!K45","v":8111.1231207504752},{"$f":"+Nøgle!K23","v":-2305.2273529438389},{"$f":"+('Skema 1'!E22/('Skema 1'!E12+'Skema 1'!E22))*-212264.317344543","v":-35462.614141682221},-38592.769297663515,10416.350473694314,"-451,9%▼","2022 COVID kompensation"]
["Region Hovedstaden, Børn-unge psykiatrien","Hovedart 9: Interne udgifter og indtægter",null,null,null,0,0,""]
["Region Hovedstaden, Børn-unge psykiatrien","I alt",{"$f":"SUMIFS((C7:C24),(A7:A24),A25)","v":76477.720084641143},{"$f":"SUMIFS((D7:D24),(A7:A24),A25)","v":76800.300178919686},{"$f":"SUMIFS((E7:E24),(A7:A24),A25)","v":40744.570683619531},{"$f":"SUMIFS((F7:F24),(A7:A24),A25)","v":53147.827240607978},-322.58009427854267,"-0,4%"]
["Ikke fordelte udgifter i Region Hovedstaden, psykiatri",null,null,null,null,null,0,""]
["Ikke fordelte udgifter i Region Hovedstaden, psykiatri","Hovedart 1: Lønninger",null,null,null,null,0,""]
["Ikke fordelte udgifter i Region Hovedstaden, psykiatri","Hovedart 2: Varekøb",null,null,null,null,0,""]
["Ikke fordelte udgifter i Region Hovedstaden, psykiatri","Hovedart 4: Tjenesteydelser m.v. ",null,null,null,null,0,""]
["Ikke fordelte udgifter i Region Hovedstaden, psykiatri","Hovedart 5: Tilskud og overførsler",null,null,null,null,0,""]
["Ikke fordelte udgifter i Region Hovedstaden, psykiatri","Hovedart 6: Finansudgifter",null,null,null,null,0,""]
["Ikke fordelte udgifter i Region Hovedstaden, psykiatri","Hovedart 7: Indtægter",null,null,null,null,0,""]
["Ikke fordelte udgifter i Region Hovedstaden, psykiatri","Hovedart 8: Finansindtægter",null,null,null,null,0,""]
["Ikke fordelte udgifter i Region Hovedstaden, psykiatri","Hovedart 9: Interne udgifter og indtægter",null,null,null,null,0,""]
["Ikke fordelte udgifter i Region Hovedstaden, psykiatri","I alt",{"$f":"SUMIFS((C7:C34),(A7:A34),A35)","v":0},{"$f":"SUMIFS((D7:D34),(A7:A34),A35)","v":0},{"$f":"SUMIFS((E7:E34),(A7:A34),A35)","v":0},{"$f":"SUMIFS((F7:F34),(A7:A34),A35)","v":0},0,""]

{"sheet":"Skema 3","index":2,"n_rows":26,"n_cols":9,"rows_kept":26,"cut":false,"hidden":false,"merged":[[1,1,2,8]]}
["Region Hovedstaden, psykiatriske sygehuse."]
[null,"Skema 3:Regionale fællesudgifter og -indtægter. (1.000 kr.)"]
[]
[]
["Sygehus",null,2023,2022,2021,2020,"Δ2022-2023","% afvigelse","Begrundelse"]
["Region Hovedstaden, Voksen psykiatrien"]
["Region Hovedstaden, Voksen psykiatrien","1.70.50: Andel af fællesudgifter",{"$f":"44378.6323551777*Nøgle!F35","v":37986.399746520736},{"$f":"(41288.8982272307-208.061564189507)*Nøgle!F13","v":35439.211650373691},{"$f":"+('Skema 1'!E15/('Skema 1'!E15+'Skema 1'!E25))*(37384.9807908488-804.77869333603)","v":31830.796473500031},62341.666970651895,{"$f":"IF(ISERROR(C7- D7)=TRUE,\"\",C7 - D7)","v":2547.1880961470451},{"$f":"IF(ISERROR((((C7- D7)/D7)*100)=TRUE),\"\",IF((((C7- D7)/D7)*100)<-7,FIXED(((C7- D7)/D7)*100, 1,TRUE) &\"%\" & \"▼\",IF((((C7- D7)/D7)*100)>7,FIXED(((C7- D7)/D7)*100, 1,TRUE) &\"%\" &\"▲\",FIXED(((C7- D7)/D7)*100, 1,TRUE)&\"%\")))","v":"7,2%▲"}]
["Region Hovedstaden, Voksen psykiatrien","1.60.40: Andel af central administration af sundhed (til og med 2019)",null,null,null,0,0,""]
["Region Hovedstaden, Voksen psykiatrien","1.60.41: Andel af øvrige udgifter og indtægter",null,null,null,-99.379174220013113,0,""]
["Region Hovedstaden, Voksen psykiatrien","1.50.33: Andel af central administration af sundhed (ekskl. psykiatri)",null,null,null,0,0,""]
["Region Hovedstaden, Voksen psykiatrien","1.50.35: Administration af det psykiatriske område (kun central del)",{"$f":"15759.3799609089*Nøgle!F35","v":13489.422165181926},{"$f":"18320.1728048644*Nøgle!F13","v":15804.266276960143},{"$f":"+('Skema 1'!E15/('Skema 1'!E15+'Skema 1'!E25))*19097.6221076344","v":16618.074465948845},18594.507970967494,-2314.8441117782168,"-14,6%▼"]
["Region Hovedstaden, Voksen psykiatrien","I alt",{"$f":"SUMIFS((C7:C11),(A7:A11),A12)","v":51475.82191170266},{"$f":"SUMIFS((D7:D11),(A7:A11),A12)","v":51243.477927333835},{"$f":"SUMIFS((E7:E11),(A7:A11),A12)","v":48448.870939448876},{"$f":"SUMIFS((F7:F11),(A7:A11),A12)","v":80836.795767399381},232.34398436882475,"0,5%"]
["Region Hovedstaden, Børn-unge psykiatrien",null,null,null,null,null,0,""]
["Region Hovedstaden, Børn-unge psykiatrien","1.70.50: Andel af fællesudgifter",{"$f":"44378.6323551777*Nøgle!F45","v":6392.2326086569619},{"$f":"(41288.8982272307-208.061564189507)*Nøgle!F23","v":5641.6250126675004},{"$f":"+('Skema 1'!E25/('Skema 1'!E15+'Skema 1'!E25))*(37384.9807908488-804.77869333603)","v":4749.405624012732},9659.8556382013121,750.60759598946152,"13,3%▲"]
["Region Hovedstaden, Børn-unge psykiatrien","1.60.40: Andel af central administration af sundhed (til og med 2019)",null,null,null,0,0,""]
["Region Hovedstaden, Børn-unge psykiatrien","1.60.41: Andel af øvrige udgifter og indtægter",null,null,null,-15.398825906610876,0,""]
["Region Hovedstaden, Børn-unge psykiatrien","1.50.33: Andel af central administration af sundhed (ekskl. psykiatri)",null,null,{"$f":"+('Skema 1'!E25/('Skema 1'!E15+'Skema 1'!E25))*19097.6221076344","v":2479.5476416855531},0,0,""]
["Region Hovedstaden, Børn-unge psykiatrien","1.50.35: Administration af det psykiatriske område (kun central del)",{"$f":"15759.3799609089*Nøgle!F45","v":2269.9577957269739},{"$f":"18320.1728048644*Nøgle!F23","v":2515.9065279042579},null,2881.2232875885088,-245.948732177284,"-9,8%▼"]
["Region Hovedstaden, Børn-unge psykiatrien","I alt",{"$f":"SUMIFS((C7:C18),(A7:A18),A19)","v":8662.1904043839349},{"$f":"SUMIFS((D7:D18),(A7:A18),A19)","v":8157.5315405717583},{"$f":"SUMIFS((E7:E18),(A7:A18),A19)","v":7228.9532656982847},{"$f":"SUMIFS((F7:F18),(A7:A18),A19)","v":12525.680099883211},504.65886381217661,"6,2%"]
["Ikke fordelte udgifter i Region Hovedstaden, psykiatri",null,null,null,null,null,0,""]
["Ikke fordelte udgifter i Region Hovedstaden, psykiatri","1.70.50: Andel af fællesudgifter",null,null,null,null,0,""]
["Ikke fordelte udgifter i Region Hovedstaden, psykiatri","1.60.40: Andel af central administration af sundhed (til og med 2019)",null,null,null,null,0,""]
["Ikke fordelte udgifter i Region Hovedstaden, psykiatri","1.60.41: Andel af øvrige udgifter og indtægter",null,null,null,null,0,""]
["Ikke fordelte udgifter i Region Hovedstaden, psykiatri","1.50.33: Andel af central administration af sundhed (ekskl. psykiatri)",null,null,null,null,0,""]
["Ikke fordelte udgifter i Region Hovedstaden, psykiatri","1.50.35: Administration af det psykiatriske område (kun central del)",null,null,null,null,0,""]
["Ikke fordelte udgifter i Region Hovedstaden, psykiatri","I alt",{"$f":"SUMIFS((C7:C25),(A7:A25),A26)","v":0},{"$f":"SUMIFS((D7:D25),(A7:A25),A26)","v":0},{"$f":"SUMIFS((E7:E25),(A7:A25),A26)","v":0},{"$f":"SUMIFS((F7:F25),(A7:A25),A26)","v":0},0,""]

{"sheet":"Skema 4","index":3,"n_rows":20,"n_cols":9,"rows_kept":20,"cut":false,"hidden":false,"merged":[[1,1,2,8]]}
["Region Hovedstaden, psykiatriske sygehuse."]
[null,"Skema 4: Udgifter og indtægter til og fra psykiatriske afdelinger konteret på somatiske sygehuse. (1.000 kr.)"]
[]
[]
["Sygehus",null,2023,2022,2021,2020,"Δ2022-2023","% afvigelse","Begrundelse"]
["Region Hovedstaden, Voksen psykiatrien"]
["Region Hovedstaden, Voksen psykiatrien","Korrektion",null,null,null,null,{"$f":"IF(ISERROR(C7- D7)=TRUE,\"\",C7 - D7)","v":0},{"$f":"IF(ISERROR((((C7- D7)/D7)*100)=TRUE),\"\",IF((((C7- D7)/D7)*100)<-7,FIXED(((C7- D7)/D7)*100, 1,TRUE) &\"%\" & \"▼\",IF((((C7- D7)/D7)*100)>7,FIXED(((C7- D7)/D7)*100, 1,TRUE) &\"%\" &\"▲\",FIXED(((C7- D7)/D7)*100, 1,TRUE)&\"%\")))","v":""}]
["Region Hovedstaden, Voksen psykiatrien","Lønudg. på psyk. afd.,somatiske sygehuse",null,null,null,null,0,""]
["Region Hovedstaden, Voksen psykiatrien","Øvrige udg. til psyk. afd.,somatiske sygehuse",null,null,null,null,0,""]
["Region Hovedstaden, Voksen psykiatrien","I alt",{"$f":"SUMIFS((C7:C9),(A7:A9),A10)","v":0},{"$f":"SUMIFS((D7:D9),(A7:A9),A10)","v":0},{"$f":"SUMIFS((E7:E9),(A7:A9),A10)","v":0},{"$f":"SUMIFS((F7:F9),(A7:A9),A10)","v":0},0,""]
["Region Hovedstaden, Børn-unge psykiatrien",null,null,null,null,null,0,""]
["Region Hovedstaden, Børn-unge psykiatrien","Korrektion",null,null,null,null,0,""]
["Region Hovedstaden, Børn-unge psykiatrien","Lønudg. på psyk. afd.,somatiske sygehuse",null,null,null,null,0,""]
["Region Hovedstaden, Børn-unge psykiatrien","Øvrige udg. til psyk. afd.,somatiske sygehuse",null,null,null,null,0,""]
["Region Hovedstaden, Børn-unge psykiatrien","I alt",{"$f":"SUMIFS((C7:C14),(A7:A14),A15)","v":0},{"$f":"SUMIFS((D7:D14),(A7:A14),A15)","v":0},{"$f":"SUMIFS((E7:E14),(A7:A14),A15)","v":0},{"$f":"SUMIFS((F7:F14),(A7:A14),A15)","v":0},0,""]
["Ikke fordelte udgifter i Region Hovedstaden, psykiatri",null,null,null,null,null,0,""]
["Ikke fordelte udgifter i Region Hovedstaden, psykiatri","Korrektion",null,null,null,null,0,""]
["Ikke fordelte udgifter i Region Hovedstaden, psykiatri","Lønudg. på psyk. afd.,somatiske sygehuse",null,null,null,null,0,""]
["Ikke fordelte udgifter i Region Hovedstaden, psykiatri","Øvrige udg. til psyk. afd.,somatiske sygehuse",null,null,null,null,0,""]
["Ikke fordelte udgifter i Region Hovedstaden, psykiatri","I alt",{"$f":"SUMIFS((C7:C19),(A7:A19),A20)","v":0},{"$f":"SUMIFS((D7:D19),(A7:A19),A20)","v":0},{"$f":"SUMIFS((E7:E19),(A7:A19),A20)","v":0},{"$f":"SUMIFS((F7:F19),(A7:A19),A20)","v":0},0,""]

{"sheet":"Skema 5","index":4,"n_rows":17,"n_cols":9,"rows_kept":17,"cut":false,"hidden":false,"merged":[[1,1,2,8]]}
["Region Hovedstaden, psykiatriske sygehuse."]
[null,"Skema 5: Leasing- og huslejeudgifter. (1.000 kr.)"]
[]
[]
["Sygehus",null,2023,2022,2021,2020,"Δ2022-2023","% afvigelse","Begrundelse"]
["Region Hovedstaden, Voksen psykiatrien"]
["Region Hovedstaden, Voksen psykiatrien","Leasing- og lejeudgifter",10,1262.8703700000001,475.01825886563785,1146.0056658072297,{"$f":"IF(ISERROR(C7- D7)=TRUE,\"\",C7 - D7)","v":-1252.8703700000001},{"$f":"IF(ISERROR((((C7- D7)/D7)*100)=TRUE),\"\",IF((((C7- D7)/D7)*100)<-7,FIXED(((C7- D7)/D7)*100, 1,TRUE) &\"%\" & \"▼\",IF((((C7- D7)/D7)*100)>7,FIXED(((C7- D7)/D7)*100, 1,TRUE) &\"%\" &\"▲\",FIXED(((C7- D7)/D7)*100, 1,TRUE)&\"%\")))","v":"-99,2%▼"}]
["Region Hovedstaden, Voksen psykiatrien","Huslejeudgifter",176,0,31.163761467374588,53.681966882533118,176,""]
["Region Hovedstaden, Voksen psykiatrien","I alt",{"$f":"SUMIFS((C7:C8),(A7:A8),A9)","v":186},{"$f":"SUMIFS((D7:D8),(A7:A8),A9)","v":1262.8703700000001},{"$f":"SUMIFS((E7:E8),(A7:A8),A9)","v":506.18202033301242},{"$f":"SUMIFS((F7:F8),(A7:A8),A9)","v":1199.6876326897627},-1076.8703700000001,"-85,3%▼"]
["Region Hovedstaden, Børn-unge psykiatrien",null,null,null,null,null,0,""]
["Region Hovedstaden, Børn-unge psykiatrien","Leasing- og lejeudgifter",null,0,68.38723113436231,172.29426419277038,0,""]
["Region Hovedstaden, Børn-unge psykiatrien","Huslejeudgifter",null,0,5.0029085326254172,8.3180331174668805,0,""]
["Region Hovedstaden, Børn-unge psykiatrien","I alt",{"$f":"SUMIFS((C7:C12),(A7:A12),A13)","v":0},{"$f":"SUMIFS((D7:D12),(A7:A12),A13)","v":0},{"$f":"SUMIFS((E7:E12),(A7:A12),A13)","v":73.390139666987722},{"$f":"SUMIFS((F7:F12),(A7:A12),A13)","v":180.61229731023727},0,""]
["Ikke fordelte udgifter i Region Hovedstaden, psykiatri",null,null,null,null,null,0,""]
["Ikke fordelte udgifter i Region Hovedstaden, psykiatri","Leasing- og lejeudgifter",null,null,null,null,0,""]
["Ikke fordelte udgifter i Region Hovedstaden, psykiatri","Huslejeudgifter",null,null,null,null,0,""]
["Ikke fordelte udgifter i Region Hovedstaden, psykiatri","I alt",{"$f":"SUMIFS((C7:C16),(A7:A16),A17)","v":0},{"$f":"SUMIFS((D7:D16),(A7:A16),A17)","v":0},{"$f":"SUMIFS((E7:E16),(A7:A16),A17)","v":0},{"$f":"SUMIFS((F7:F16),(A7:A16),A17)","v":0},0,""]

{"sheet":"Skema 6","index":5,"n_rows":155,"n_cols":9,"rows_kept":155,"cut":false,"hidden":false,"merged":[[1,1,2,8]]}
["Region Hovedstaden, psykiatriske sygehuse."]
[null,"Skema 6: Udgifter til andet end patientbehandling. (1.000 kr.)"]
[]
[]
["Sygehus",null,2023,2022,2021,2020,"Δ2022-2023","% afvigelse","Begrundelse"]
["Region Hovedstaden, Voksen psykiatrien"]
["Region Hovedstaden, Voksen psykiatrien","Skema 6.1: Center for voldsramte (Bispebjerg)",null,null,null,null,{"$f":"IF(ISERROR(C7- D7)=TRUE,\"\",C7 - D7)","v":0},{"$f":"IF(ISERROR((((C7- D7)/D7)*100)=TRUE),\"\",IF((((C7- D7)/D7)*100)<-7,FIXED(((C7- D7)/D7)*100, 1,TRUE) &\"%\" & \"▼\",IF((((C7- D7)/D7)*100)>7,FIXED(((C7- D7)/D7)*100, 1,TRUE) &\"%\" &\"▲\",FIXED(((C7- D7)/D7)*100, 1,TRUE)&\"%\")))","v":""}]
["Region Hovedstaden, Voksen psykiatrien","Skema 6.2: Ventilatørbistand i hjemmet, respiratorpatienter",null,null,null,null,0,""]
["Region Hovedstaden, Voksen psykiatrien","Skema 6.3: Blodprøvetagning i eget hjem",null,null,null,null,0,""]
["Region Hovedstaden, Voksen psykiatrien","Skema 6.4: Psykinfo + pårørende",5800,5597.169422447002,5317.1831362456951,4709.7348513536981,202.83057755299797,"3,6%"]
["Region Hovedstaden, Voksen psykiatrien","Skema 6.5: Leveret udstyr til patienter i eget hjem, ilt og sonderemedier",null,null,null,null,0,""]
["Region Hovedstaden, Voksen psykiatrien","Skema 6.6: Montebello (Nordsjællands Hospitaler)",null,null,null,null,0,""]
["Region Hovedstaden, Voksen psykiatrien","Skema 6.7: Satspulje korrektioner mellem år",null,null,null,null,0,""]
["Region Hovedstaden, Voksen psykiatrien","Skema 6.8: Klinisk farmakologisk rådgivning af praksissektoren",null,null,null,null,0,""]
["Region Hovedstaden, Voksen psykiatrien","Skema 6.9: Tandregulering ifm. operation",null,null,null,null,0,""]
["Region Hovedstaden, Voksen psykiatrien","Skema 6.10: Giftlinjen",null,null,null,null,0,""]
["Region Hovedstaden, Voksen psykiatrien","Skema 6.11: Tjenestemandspensioner",null,null,null,null,0,""]
["Region Hovedstaden, Voksen psykiatrien","Skema 6.12: Art 4.6 Betalinger til staten",null,null,null,null,0,""]
["Region Hovedstaden, Voksen psykiatrien","Skema 6.13: Art 4.7 Betalinger til kommuner",null,null,null,null,0,""]
["Region Hovedstaden, Voksen psykiatrien","Skema 6.14: Art 4.8 Betalinger til andre regioner",null,null,null,null,0,""]
["Region Hovedstaden, Voksen psykiatrien","Skema 6.15: Art 7.6 Betalinger fra staten",-3703,-12548.159464360235,-10666.63290394023,-22288.610528826153,8845.1594643602348,"-70,5%▼"]
["Region Hovedstaden, Voksen psykiatrien","Skema 6.16: Art 7.7 Betalinger fra kommuner",-61583,-58164.548999999999,-48344.42,-47233.568000000007,-3418.4510000000009,"5,9%"]
["Region Hovedstaden, Voksen psykiatrien","Skema 6.17: Art 7.8 Betalinger fra andre regioner",-39858,-67167.233022154222,-90524.686063149958,-55547.308630376487,27309.233022154222,"-40,7%▼","Der er lavet en stor efterregulering mellemregionalt for perioden 2017 til 2021"]
["Region Hovedstaden, Voksen psykiatrien","Skema 6.18: Betalinger til selvejende, private og udenlandske sygehuse",7574,{"$f":"8458.535+16.361","v":8474.8960000000006},null,null,-900.89600000000064,"-10,6%▼"]
["Region Hovedstaden, Voksen psykiatrien","Skema 6.19: Dækningsafgift/ejendomsskat",null,null,null,null,0,""]
["Region Hovedstaden, Voksen psykiatrien","Skema 6.20: Forsikringer/erstatninger",11163,6632.8789633219321,8862.1182693633418,6006.9212555371687,4530.1210366780679,"68,3%▲"]
["Region Hovedstaden, Voksen psykiatrien","Skema 6.21: Vederlagsfri Lab. –ydelser og andre ydelser til praksissektoren",null,null,null,null,0,""]
["Region Hovedstaden, Voksen psykiatrien","Skema 6.22: Patienttransport",3458,3039.609692078277,2690.0720056328182,2658.7292605944162,418.39030792172298,"13,8%▲"]
["Region Hovedstaden, Voksen psykiatrien","Skema 6.23: Serviceydelser til/fra andre institutioner eller sygehuse udenfor regionen",null,null,null,null,0,""]
["Region Hovedstaden, Voksen psykiatrien","Skema 6.24: Udgifter til eksternt finansierede forskning",null,null,0,null,0,""]
["Region Hovedstaden, Voksen psykiatrien","Skema 6.25: Forebyggelse rettet mod praksissektoren og kommuner",null,null,null,null,0,""]
["Region Hovedstaden, Voksen psykiatrien","Skema 6.26: Praksisreservelæger",null,null,null,null,0,""]
["Region Hovedstaden, Voksen psykiatrien","Skema 6.27: Præhospital",null,null,null,null,0,""]
["Region Hovedstaden, Voksen psykiatrien","Skema 6.28: Udgifter til Danske Regioner (Kontigent, MedCom, Fællesproj.)",0,null,0,407.10505766432368,0,""]
["Region Hovedstaden, Voksen psykiatrien","Skema 6.29: Hospice",null,null,null,null,0,""]
["Region Hovedstaden, Voksen psykiatrien","Skema 6.30: Konsulenter(Praksis)",null,null,null,null,0,""]
["Region Hovedstaden, Voksen psykiatrien","Skema 6.31: Videnskabsetisk Komité",null,null,null,null,0,""]
["Region Hovedstaden, Voksen psykiatrien","Skema 6.32: Tolkebistand",3267,2850.6441456315897,3051.6686580752621,3349.0211014852634,416.35585436841029,"14,6%▲"]
["Region Hovedstaden, Voksen psykiatrien","Skema 6.33: Dansk Center for Partikelterapi",null,null,null,null,{"$f":"IF(ISERROR(C39- D39)=TRUE,\"\",C39 - D39)","v":0},{"$f":"IF(ISERROR((((C39- D39)/D39)*100)=TRUE),\"\",IF((((C39- D39)/D39)*100)<-7,FIXED(((C39- D39)/D39)*100, 1,TRUE) &\"%\" & \"▼\",IF((((C39- D39)/D39)*100)>7,FIXED(((C39- D39)/D39)*100, 1,TRUE) &\"%\" &\"▲\",FIXED(((C39- D39)/D39)*100, 1,TRUE)&\"%\")))","v":""}]
["Region Hovedstaden, Voksen psykiatrien","Skema 6.34: Politisk organisation – overførte udgifter fra funktion 4.10.01, 4.10.02 og 4.10.04",null,null,null,null,0,""]
["Region Hovedstaden, Voksen psykiatrien","Skema 6.35: Øvrige udgifter, Region Sjælland",null,null,null,null,0,""]
["Region Hovedstaden, Voksen psykiatrien","Skema 6.36: Sundhedsydelser ifm. specialsektor",null,null,null,null,0,""]
["Region Hovedstaden, Voksen psykiatrien","Skema 6.37: Udgifter til primær sundhed fra skema 2",null,null,null,null,0,""]
["Region Hovedstaden, Voksen psykiatrien","Skema 6.38: Udgifter til primær sundhed fra skema 3",null,null,null,null,0,""]
["Region Hovedstaden, Voksen psykiatrien","Skema 6.39: Særlige udgifter ifm. COVID-19",0,19563.883436520151,27000.5745459916,24383.573781587293,-19563.883436520151,"-100,0%▼","Ingen kompensation i 2023"]
["Region Hovedstaden, Voksen psykiatrien","Skema 6.40: Udleveret udstyr/tilbehør ifm. cochlear implantater",null,null,null,null,0,""]
["Region Hovedstaden, Voksen psykiatrien","Skema 6.41: Luxturna-behandling, Rigshospitalet",null,null,null,null,0,""]
["Region Hovedstaden, Voksen psykiatrien","Skema 6.42: Udleveret medicin",null,null,null,null,0,""]
["Region Hovedstaden, Voksen psykiatrien","Skema 6.43: Udgifter ifm. sundhedsklynger",null,null,null,null,0,""]
["Region Hovedstaden, Voksen psykiatrien","Skema 6.44: Ukrainske patienter under særlov eller asyl",null,null,null,null,0,""]
["Region Hovedstaden, Voksen psykiatrien","Skema 6.45: Udgifter ifm. de særlige pladser i psykiatrien",80265,null,null,null,80265,"","Ny fra 2023, men der er efterindberettet 2022 data"]
["Region Hovedstaden, Voksen psykiatrien","Skema 6.46: Sikringsafdelingen, Region Sjælland",null,null,null,null,0,""]
["Region Hovedstaden, Voksen psykiatrien","Skema 6.47: Øvrige (Kan kun benyttes efter aftale med Sundhedsdatastyrelsen)",null,null,null,null,0,""]
["Region Hovedstaden, Voksen psykiatrien","Lukkede poster (må kun bruges af Sundhedsdatastyrelsen)",null,null,null,null,0,""]
["Region Hovedstaden, Voksen psykiatrien","I alt",{"$f":"SUMIFS((C7:C54),(A7:A54),A55)","v":6383},{"$f":"SUMIFS((D7:D54),(A7:A54),A55)","v":-91720.859826515501},{"$f":"SUMIFS((E7:E54),(A7:A54),A55)","v":-102614.12235178149},{"$f":"SUMIFS((F7:F54),(A7:A54),A55)","v":-83554.401850980503},98103.859826515501,"-107,0%▼"]
["Region Hovedstaden, Børn-unge psykiatrien",null,null,null,null,null,0,""]
["Region Hovedstaden, Børn-unge psykiatrien","Skema 6.1: Center for voldsramte (Bispebjerg)",null,null,null,null,0,""]
["Region Hovedstaden, Børn-unge psykiatrien","Skema 6.2: Ventilatørbistand i hjemmet, respiratorpatienter",null,null,null,null,0,""]
["Region Hovedstaden, Børn-unge psykiatrien","Skema 6.3: Blodprøvetagning i eget hjem",null,null,null,null,0,""]
["Region Hovedstaden, Børn-unge psykiatrien","Skema 6.4: Psykinfo + pårørende",1010,919.53412755299507,848.75196375430585,729.77449864630239,90.465872447004926,"9,8%▲"]
["Region Hovedstaden, Børn-unge psykiatrien","Skema 6.5: Leveret udstyr til patienter i eget hjem, ilt og sonderemedier",null,null,null,null,0,""]
["Region Hovedstaden, Børn-unge psykiatrien","Skema 6.6: Montebello (Nordsjællands Hospitaler)",null,null,null,null,0,""]
["Region Hovedstaden, Børn-unge psykiatrien","Skema 6.7: Satspulje korrektioner mellem år",null,null,null,null,0,""]
["Region Hovedstaden, Børn-unge psykiatrien","Skema 6.8: Klinisk farmakologisk rådgivning af praksissektoren",null,null,null,null,0,""]
["Region Hovedstaden, Børn-unge psykiatrien","Skema 6.9: Tandregulering ifm. operation",null,null,null,null,0,""]
["Region Hovedstaden, Børn-unge psykiatrien","Skema 6.10: Giftlinjen",null,null,null,null,0,""]
["Region Hovedstaden, Børn-unge psykiatrien","Skema 6.11: Tjenestemandspensioner",null,null,null,null,0,""]
["Region Hovedstaden, Børn-unge psykiatrien","Skema 6.12: Art 4.6 Betalinger til staten",null,null,null,null,0,""]
["Region Hovedstaden, Børn-unge psykiatrien","Skema 6.13: Art 4.7 Betalinger til kommuner",null,null,null,null,0,""]
["Region Hovedstaden, Børn-unge psykiatrien","Skema 6.14: Art 4.8 Betalinger til andre regioner",null,null,null,null,0,""]
["Region Hovedstaden, Børn-unge psykiatrien","Skema 6.15: Art 7.6 Betalinger fra staten",-836,-9042.5716656397653,-28974.946986059775,-26618.504951173843,{"$f":"IF(ISERROR(C71- D71)=TRUE,\"\",C71 - D71)","v":8206.5716656397653},{"$f":"IF(ISERROR((((C71- D71)/D71)*100)=TRUE),\"\",IF((((C71- D71)/D71)*100)<-7,FIXED(((C71- D71)/D71)*100, 1,TRUE) &\"%\" & \"▼\",IF((((C71- D71)/D71)*100)>7,FIXED(((C71- D71)/D71)*100, 1,TRUE) &\"%\" &\"▲\",FIXED(((C71- D71)/D71)*100, 1,TRUE)&\"%\")))","v":"-90,8%▼"}]
["Region Hovedstaden, Børn-unge psykiatrien","Skema 6.16: Art 7.7 Betalinger fra kommuner",null,null,null,null,0,""]
["Region Hovedstaden, Børn-unge psykiatrien","Skema 6.17: Art 7.8 Betalinger fra andre regioner",-6126,-5722.7679778457805,-16314.20093685002,-11593.887369623502,-403.23202215421952,"7,0%▲"]
["Region Hovedstaden, Børn-unge psykiatrien","Skema 6.18: Betalinger til selvejende, private og udenlandske sygehuse",16521,15878.802,null,null,642.19800000000032,"4,0%"]
["Region Hovedstaden, Børn-unge psykiatrien","Skema 6.19: Dækningsafgift/ejendomsskat",null,null,null,null,0,""]
["Region Hovedstaden, Børn-unge psykiatrien","Skema 6.20: Forsikringer/erstatninger",276,157.37511667806791,326.09908063665927,757.47116446283189,118.62488332193209,"75,4%▲"]
["Region Hovedstaden, Børn-unge psykiatrien","Skema 6.21: Vederlagsfri Lab. –ydelser og andre ydelser til praksissektoren",null,null,null,null,0,""]
["Region Hovedstaden, Børn-unge psykiatrien","Skema 6.22: Patienttransport",1049,1164.4927179217232,760.79550436718182,877.94707940558385,-115.49271792172317,"-9,9%▼"]
["Region Hovedstaden, Børn-unge psykiatrien","Skema 6.23: Serviceydelser til/fra andre institutioner eller sygehuse udenfor regionen",null,null,null,null,0,""]
["Region Hovedstaden, Børn-unge psykiatrien","Skema 6.24: Udgifter til eksternt finansierede forskning",null,null,0,null,0,""]
["Region Hovedstaden, Børn-unge psykiatrien","Skema 6.25: Forebyggelse rettet mod praksissektoren og kommuner",null,null,null,null,0,""]
["Region Hovedstaden, Børn-unge psykiatrien","Skema 6.26: Praksisreservelæger",null,null,null,null,0,""]
["Region Hovedstaden, Børn-unge psykiatrien","Skema 6.27: Præhospital",null,null,null,null,0,""]
["Region Hovedstaden, Børn-unge psykiatrien","Skema 6.28: Udgifter til Danske Regioner (Kontigent, MedCom, Fællesproj.)",null,null,0,63.08102233567633,0,""]
["Region Hovedstaden, Børn-unge psykiatrien","Skema 6.29: Hospice",null,null,null,null,0,""]
["Region Hovedstaden, Børn-unge psykiatrien","Skema 6.30: Konsulenter(Praksis)",null,null,null,null,0,""]
["Region Hovedstaden, Børn-unge psykiatrien","Skema 6.31: Videnskabsetisk Komité",null,null,null,null,0,""]
["Region Hovedstaden, Børn-unge psykiatrien","Skema 6.32: Tolkebistand",451,426.29014436841123,516.3853219247369,472.32605851473488,24.709855631588766,"5,8%"]
["Region Hovedstaden, Børn-unge psykiatrien","Skema 6.33: Dansk Center for Partikelterapi",null,null,null,null,0,""]
["Region Hovedstaden, Børn-unge psykiatrien","Skema 6.34: Politisk organisation – overførte udgifter fra funktion 4.10.01, 4.10.02 og 4.10.04",null,null,null,null,0,""]
["Region Hovedstaden, Børn-unge psykiatrien","Skema 6.35: Øvrige udgifter, Region Sjælland",null,null,null,null,0,""]
["Region Hovedstaden, Børn-unge psykiatrien","Skema 6.36: Sundhedsydelser ifm. specialsektor",null,null,null,null,0,""]
["Region Hovedstaden, Børn-unge psykiatrien","Skema 6.37: Udgifter til primær sundhed fra skema 2",null,null,null,null,0,""]
["Region Hovedstaden, Børn-unge psykiatrien","Skema 6.38: Udgifter til primær sundhed fra skema 3",null,null,null,null,0,""]
["Region Hovedstaden, Børn-unge psykiatrien","Skema 6.39: Særlige udgifter ifm. COVID-19",0,935.06854847985369,4232.7544540084064,5185.4262184127092,-935.06854847985369,"-100,0%▼"]
["Region Hovedstaden, Børn-unge psykiatrien","Skema 6.40: Udleveret udstyr/tilbehør ifm. cochlear implantater",null,null,null,null,0,""]
["Region Hovedstaden, Børn-unge psykiatrien","Skema 6.41: Luxturna-behandling, Rigshospitalet",null,null,null,null,0,""]
["Region Hovedstaden, Børn-unge psykiatrien","Skema 6.42: Udleveret medicin",null,null,null,null,0,""]
["Region Hovedstaden, Børn-unge psykiatrien","Skema 6.43: Udgifter ifm. sundhedsklynger",null,null,null,null,0,""]
["Region Hovedstaden, Børn-unge psykiatrien","Skema 6.44: Ukrainske patienter under særlov eller asyl",null,null,null,null,0,""]
["Region Hovedstaden, Børn-unge psykiatrien","Skema 6.45: Udgifter ifm. de særlige pladser i psykiatrien",null,null,null,null,0,""]
["Region Hovedstaden, Børn-unge psykiatrien","Skema 6.46: Sikringsafdelingen, Region Sjælland",null,null,null,null,0,""]
["Region Hovedstaden, Børn-unge psykiatrien","Skema 6.47: Øvrige (Kan kun benyttes efter aftale med Sundhedsdatastyrelsen)",null,null,null,null,{"$f":"IF(ISERROR(C103- D103)=TRUE,\"\",C103 - D103)","v":0},{"$f":"IF(ISERROR((((C103- D103)/D103)*100)=TRUE),\"\",IF((((C103- D103)/D103)*100)<-7,FIXED(((C103- D103)/D103)*100, 1,TRUE) &\"%\" & \"▼\",IF((((C103- D103)/D103)*100)>7,FIXED(((C103- D103)/D103)*100, 1,TRUE) &\"%\" &\"▲\",FIXED(((C103- D103)/D103)*100, 1,TRUE)&\"%\")))","v":""}]
["Region Hovedstaden, Børn-unge psykiatrien","Lukkede poster (må kun bruges af Sundhedsdatastyrelsen)",null,null,null,null,0,""]
["Region Hovedstaden, Børn-unge psykiatrien","I alt",{"$f":"SUMIFS((C7:C104),(A7:A104),A105)","v":12345},{"$f":"SUMIFS((D7:D104),(A7:A104),A105)","v":4716.2230115155053},{"$f":"SUMIFS((E7:E104),(A7:A104),A105)","v":-38604.3615982185},{"$f":"SUMIFS((F7:F104),(A7:A104),A105)","v":-30126.366279019509},7628.7769884844947,"161,8%▲"]
["Ikke fordelte udgifter i Region Hovedstaden, psykiatri",null,null,null,null,null,0,""]
["Ikke fordelte udgifter i Region Hovedstaden, psykiatri","Skema 6.1: Center for voldsramte (Bispebjerg)",null,null,null,null,0,""]
["Ikke fordelte udgifter i Region Hovedstaden, psykiatri","Skema 6.2: Ventilatørbistand i hjemmet, respiratorpatienter",null,null,null,null,0,""]
["Ikke fordelte udgifter i Region Hovedstaden, psykiatri","Skema 6.3: Blodprøvetagning i eget hjem",null,null,null,null,0,""]
["Ikke fordelte udgifter i Region Hovedstaden, psykiatri","Skema 6.4: Psykinfo + pårørende",null,null,null,null,0,""]
["Ikke fordelte udgifter i Region Hovedstaden, psykiatri","Skema 6.5: Leveret udstyr til patienter i eget hjem, ilt og sonderemedier",null,null,null,null,0,""]
["Ikke fordelte udgifter i Region Hovedstaden, psykiatri","Skema 6.6: Montebello (Nordsjællands Hospitaler)",null,null,null,null,0,""]
["Ikke fordelte udgifter i Region Hovedstaden, psykiatri","Skema 6.7: Satspulje korrektioner mellem år",null,null,null,null,0,""]
["Ikke fordelte udgifter i Region Hovedstaden, psykiatri","Skema 6.8: Klinisk farmakologisk rådgivning af praksissektoren",null,null,null,null,0,""]
["Ikke fordelte udgifter i Region Hovedstaden, psykiatri","Skema 6.9: Tandregulering ifm. operation",null,null,null,null,0,""]
["Ikke fordelte udgifter i Region Hovedstaden, psykiatri","Skema 6.10: Giftlinjen",null,null,null,null,0,""]
["Ikke fordelte udgifter i Region Hovedstaden, psykiatri","Skema 6.11: Tjenestemandspensioner",null,null,null,null,0,""]
["Ikke fordelte udgifter i Region Hovedstaden, psykiatri","Skema 6.12: Art 4.6 Betalinger til staten",null,null,null,null,0,""]
["Ikke fordelte udgifter i Region Hovedstaden, psykiatri","Skema 6.13: Art 4.7 Betalinger til kommuner",null,null,null,null,0,""]
["Ikke fordelte udgifter i Region Hovedstaden, psykiatri","Skema 6.14: Art 4.8 Betalinger til andre regioner",null,null,null,null,0,""]
["Ikke fordelte udgifter i Region Hovedstaden, psykiatri","Skema 6.15: Art 7.6 Betalinger fra staten",null,null,null,null,0,""]
["Ikke fordelte udgifter i Region Hovedstaden, psykiatri","Skema 6.16: Art 7.7 Betalinger fra kommuner",null,null,null,null,0,""]
["Ikke fordelte udgifter i Region Hovedstaden, psykiatri","Skema 6.17: Art 7.8 Betalinger fra andre regioner",null,null,null,null,0,""]
["Ikke fordelte udgifter i Region Hovedstaden, psykiatri","Skema 6.18: Betalinger til selvejende, private og udenlandske sygehuse",null,null,null,null,0,""]
["Ikke fordelte udgifter i Region Hovedstaden, psykiatri","Skema 6.19: Dækningsafgift/ejendomsskat",null,null,null,null,0,""]
["Ikke fordelte udgifter i Region Hovedstaden, psykiatri","Skema 6.20: Forsikringer/erstatninger",null,null,null,null,0,""]
["Ikke fordelte udgifter i Region Hovedstaden, psykiatri","Skema 6.21: Vederlagsfri Lab. –ydelser og andre ydelser til praksissektoren",null,null,null,null,0,""]
["Ikke fordelte udgifter i Region Hovedstaden, psykiatri","Skema 6.22: Patienttransport",null,null,null,null,0,""]
["Ikke fordelte udgifter i Region Hovedstaden, psykiatri","Skema 6.23: Serviceydelser til/fra andre institutioner eller sygehuse udenfor regionen",null,null,null,null,0,""]
["Ikke fordelte udgifter i Region Hovedstaden, psykiatri","Skema 6.24: Udgifter til eksternt finansierede forskning",null,null,null,null,0,""]
["Ikke fordelte udgifter i Region Hovedstaden, psykiatri","Skema 6.25: Forebyggelse rettet mod praksissektoren og kommuner",null,null,null,null,0,""]
["Ikke fordelte udgifter i Region Hovedstaden, psykiatri","Skema 6.26: Praksisreservelæger",null,null,null,null,0,""]
["Ikke fordelte udgifter i Region Hovedstaden, psykiatri","Skema 6.27: Præhospital",null,null,null,null,0,""]
["Ikke fordelte udgifter i Region Hovedstaden, psykiatri","Skema 6.28: Udgifter til Danske Regioner (Kontigent, MedCom, Fællesproj.)",null,null,null,null,0,""]
["Ikke fordelte udgifter i Region Hovedstaden, psykiatri","Skema 6.29: Hospice",null,null,null,null,{"$f":"IF(ISERROR(C135- D135)=TRUE,\"\",C135 - D135)","v":0},{"$f":"IF(ISERROR((((C135- D135)/D135)*100)=TRUE),\"\",IF((((C135- D135)/D135)*100)<-7,FIXED(((C135- D135)/D135)*100, 1,TRUE) &\"%\" & \"▼\",IF((((C135- D135)/D135)*100)>7,FIXED(((C135- D135)/D135)*100, 1,TRUE) &\"%\" &\"▲\",FIXED(((C135- D135)/D135)*100, 1,TRUE)&\"%\")))","v":""}]
["Ikke fordelte udgifter i Region Hovedstaden, psykiatri","Skema 6.30: Konsulenter(Praksis)",null,null,null,null,0,""]
["Ikke fordelte udgifter i Region Hovedstaden, psykiatri","Skema 6.31: Videnskabsetisk Komité",null,null,null,null,0,""]
["Ikke fordelte udgifter i Region Hovedstaden, psykiatri","Skema 6.32: Tolkebistand",null,null,null,null,0,""]
["Ikke fordelte udgifter i Region Hovedstaden, psykiatri","Skema 6.33: Dansk Center for Partikelterapi",null,null,null,null,0,""]
["Ikke fordelte udgifter i Region Hovedstaden, psykiatri","Skema 6.34: Politisk organisation – overførte udgifter fra funktion 4.10.01, 4.10.02 og 4.10.04",null,null,null,null,0,""]
["Ikke fordelte udgifter i Region Hovedstaden, psykiatri","Skema 6.35: Øvrige udgifter, Region Sjælland",null,null,null,null,0,""]
["Ikke fordelte udgifter i Region Hovedstaden, psykiatri","Skema 6.36: Sundhedsydelser ifm. specialsektor",null,null,null,null,0,""]
["Ikke fordelte udgifter i Region Hovedstaden, psykiatri","Skema 6.37: Udgifter til primær sundhed fra skema 2",null,null,null,null,0,""]
["Ikke fordelte udgifter i Region Hovedstaden, psykiatri","Skema 6.38: Udgifter til primær sundhed fra skema 3",null,null,null,null,0,""]
["Ikke fordelte udgifter i Region Hovedstaden, psykiatri","Skema 6.39: Særlige udgifter ifm. COVID-19",null,null,null,null,0,""]
["Ikke fordelte udgifter i Region Hovedstaden, psykiatri","Skema 6.40: Udleveret udstyr/tilbehør ifm. cochlear implantater",null,null,null,null,0,""]
["Ikke fordelte udgifter i Region Hovedstaden, psykiatri","Skema 6.41: Luxturna-behandling, Rigshospitalet",null,null,null,null,0,""]
["Ikke fordelte udgifter i Region Hovedstaden, psykiatri","Skema 6.42: Udleveret medicin",null,null,null,null,0,""]
["Ikke fordelte udgifter i Region Hovedstaden, psykiatri","Skema 6.43: Udgifter ifm. sundhedsklynger",null,null,null,null,0,""]
["Ikke fordelte udgifter i Region Hovedstaden, psykiatri","Skema 6.44: Ukrainske patienter under særlov eller asyl",null,null,null,null,0,""]
["Ikke fordelte udgifter i Region Hovedstaden, psykiatri","Skema 6.45: Udgifter ifm. de særlige pladser i psykiatrien",null,null,null,null,0,""]
["Ikke fordelte udgifter i Region Hovedstaden, psykiatri","Skema 6.46: Sikringsafdelingen, Region Sjælland",null,null,null,null,0,""]
["Ikke fordelte udgifter i Region Hovedstaden, psykiatri","Skema 6.47: Øvrige (Kan kun benyttes efter aftale med Sundhedsdatastyrelsen)",null,null,null,null,0,""]
["Ikke fordelte udgifter i Region Hovedstaden, psykiatri","Lukkede poster (må kun bruges af Sundhedsdatastyrelsen)",null,null,null,null,0,""]
["Ikke fordelte udgifter i Region Hovedstaden, psykiatri","I alt",{"$f":"SUMIFS((C7:C154),(A7:A154),A155)","v":0},{"$f":"SUMIFS((D7:D154),(A7:A154),A155)","v":0},{"$f":"SUMIFS((E7:E154),(A7:A154),A155)","v":0},{"$f":"SUMIFS((F7:F154),(A7:A154),A155)","v":0},0,""]

{"sheet":"Skema 7","index":6,"n_rows":12,"n_cols":13,"rows_kept":12,"cut":false,"hidden":false,"merged":[[4,1,4,2],[1,1,2,8],[4,4,4,5],[4,7,4,8],[4,10,4,11]]}
["Region Hovedstaden, psykiatriske sygehuse."]
[null,"Skema 7: Vederlagsfrie ydelser mellem sygehusene. (1.000 kr.)"]
[]
[]
["Sygehus",2023,null,2023,2022,null,2022,2021,null,2021,2020,null,2020]
[null,"Leverede","Modtagne","Lev. - Mod.","Leverede","Modtagne","Lev. - Mod.","Leverede","Modtagne","Lev. - Mod.","Leverede","Modtagne","Lev. - Mod."]
["Region Hovedstaden. Voksen psykiatrien",null,{"$f":"26059.7539093052*Nøgle!F35","v":22306.145474970439},{"$f":"$B$7-$C$7","v":-22306.145474970439},null,{"$f":"22909.8927139134*Nøgle!F13","v":19763.680653227133},{"$f":"$E$7-$F$7","v":-19763.680653227133},null,{"$f":"+('Skema 1'!E15/('Skema 1'!E15+'Skema 1'!E25))*18746.4290201019","v":16312.478677758621},{"$f":"$H$7-$I$7","v":-16312.478677758621},null,16157.903350684039,{"$f":"$K$7-$L$7","v":-16157.903350684039}]
["Region Hovedstaden. Børn-unge psykiatrien",null,{"$f":"26059.7539093052*Nøgle!F45","v":3753.6084343347588},{"$f":"$B$8-$C$8","v":-3753.6084343347588},null,3146.2120606862663,{"$f":"$E$8-$F$8","v":-3146.2120606862663},null,{"$f":"+('Skema 1'!E25/('Skema 1'!E15+'Skema 1'!E25))*18746.4290201019","v":2433.9503423432766},{"$f":"$H$8-$I$8","v":-2433.9503423432766},null,2503.6708411582113,{"$f":"$K$8-$L$8","v":-2503.6708411582113}]
["Ikke fordelte udgifter i Region Hovedstaden. psykiatri",null,null,{"$f":"$B$9-$C$9","v":0},null,null,{"$f":"$E$9-$F$9","v":0},null,null,{"$f":"$H$9-$I$9","v":0},null,null,{"$f":"$K$9-$L$9","v":0}]
["I alt",{"$f":"SUM(B7:B9)","v":0},{"$f":"SUM(C7:C9)","v":26059.753909305196},{"$f":"SUM(D7:D9)","v":-26059.753909305196},{"$f":"SUM(E7:E9)","v":0},22909.892713913399,-22909.892713913399,0,18746.429020101899,-18746.429020101899,{"$f":"SUM(K7:K9)","v":0},18661.57419184225,-18661.57419184225]
[]
["NB: Afstem med somatikken"]

{"sheet":"Rapport","index":7,"n_rows":98,"n_cols":6,"rows_kept":98,"cut":false,"hidden":false,"merged":[]}
[]
[null,"Skema 1: Udgifter og indtægter på sygehusene/enhederne, eksklusiv omkostningssted 0001, Fælleskonto. (1.000 kr.)"]
[null,null,2023,2022,2021,2020]
[null,"Hovedart 1: Lønninger",3436597.8775299983,3302651.5540199997,3088652.0252299989,2970174.4396600011]
[null,"Hovedart 2: Varekøb",70347.039609999993,88108.67766999999,124210.10910999995,90014.571930000006]
[null,"Hovedart 4: Tjenesteydelser m.v. ",521971.13933000009,498258.54666000005,473247.77252000012,390103.59162999992]
[null,"Hovedart 5: Tilskud og overførsler",2492.0671299999999,2824.60014,3032.9134599999998,1559.7066300000001]
[null,"Hovedart 6: Finansudgifter",0,0,0,0]
[null,"Hovedart 7: Indtægter",-245527.77880999987,-261905.73926000003,-309907.93766,-236285.88906000002]
[null,"Hovedart 8: Finansindtægter",0,0,0,0]
[null,"Hovedart 9: Interne udgifter og indtægter",0,0,0,0]
[null,"I alt",3785880.3447899986,3629937.6392299994,3379234.8826599992,3215566.4207900008]
[]
[null,"Skema 2: Fællesudgifter og -indtægter vedrørende sygehusene.\n(1.000 kr.)"]
[null,null,2023,2022,2021,2020]
[null,"Hovedart 1: Lønninger",247112.750167636,234485.664206863,227732.263192288,161475.5431164286]
[null,"Hovedart 2: Varekøb",282539.82552168501,298113.88342219102,349696.92318780604,411754.3834836118]
[null,"Hovedart 4: Tjenesteydelser m.v. ",53548.2039704899,138210.97420467989,243728.40815746106,145959.20073129781]
[null,"Hovedart 5: Tilskud og overførsler",20.4714654209393,-7.0573036341484201,-23.337850526557201,4.4732847562049365]
[null,"Hovedart 6: Finansudgifter",0,0,0,0]
[null,"Hovedart 7: Indtægter",-41569.29982790169,-52151.709877064401,-85366.988582889884,-35388.077718031636]
[null,"Hovedart 8: Finansindtægter",-10698.709952195582,-59411.00128859379,-212264.31734454297,-287658.35175994295]
[null,"Hovedart 9: Interne udgifter og indtægter",0,0,0,0]
[null,"I alt",530953.24134513456,559240.75336444168,523502.95075959555,396147.17113811988]
[]
[null,"Skema 3:Regionale fællesudgifter og -indtægter. (1.000 kr.)"]
[null,null,2023,2022,2021,2020]
[null,"1.70.50: Andel af fællesudgifter",44378.632355177695,41080.836663041191,36580.202097512767,72001.522608853207]
[null,"1.60.40: Andel af central administration af sundhed (til og med 2019)",0,0,0,0]
[null,"1.60.41: Andel af øvrige udgifter og indtægter",0,0,0,-114.77800012662399]
[null,"1.50.33: Andel af central administration af sundhed (ekskl. psykiatri)",0,0,2479.5476416855531,0]
[null,"1.50.35: Administration af det psykiatriske område (kun central del)",15759.3799609089,18320.1728048644,16618.074465948845,21475.731258556003]
[null,"I alt",60138.012316086591,59401.009467905591,55677.824205147161,93362.475867282599]
[]
[null,"Skema 4: Udgifter og indtægter til og fra psykiatriske afdelinger konteret på somatiske sygehuse. (1.000 kr.)"]
[null,null,2023,2022,2021,2020]
[null,"Korrektion",0,0,0,0]
[null,"Lønudg. på psyk. afd.,somatiske sygehuse",0,0,0,0]
[null,"Øvrige udg. til psyk. afd.,somatiske sygehuse",0,0,0,0]
[null,"I alt",0,0,0,0]
[]
[null,"Skema 5: Leasing- og huslejeudgifter. (1.000 kr.)"]
[null,null,2023,2022,2021,2020]
[null,"Leasing- og lejeudgifter",10,1262.8703700000001,543.4054900000001,1318.2999300000001]
[null,"Huslejeudgifter",176,0,36.166670000000003,62]
[null,"I alt",186,1262.8703700000001,579.57216000000017,1380.2999299999999]
[]
[null,"Skema 6: Udgifter til andet end patientbehandling. (1.000 kr.)"]
[null,null,2023,2022,2021,2020]
[null,"Skema 6.1: Center for voldsramte (Bispebjerg)",0,0,0,0]
[null,"Skema 6.2: Ventilatørbistand i hjemmet, respiratorpatienter",0,0,0,0]
[null,"Skema 6.3: Blodprøvetagning i eget hjem",0,0,0,0]
[null,"Skema 6.4: Psykinfo + pårørende",6810,6516.7035499999974,6165.9351000000006,5439.5093500000003]
[null,"Skema 6.5: Leveret udstyr til patienter i eget hjem, ilt og sonderemedier",0,0,0,0]
[null,"Skema 6.6: Montebello (Nordsjællands Hospitaler)",0,0,0,0]
[null,"Skema 6.7: Satspulje korrektioner mellem år",0,0,0,0]
[null,"Skema 6.8: Klinisk farmakologisk rådgivning af praksissektoren",0,0,0,0]
[null,"Skema 6.9: Tandregulering ifm. operation",0,0,0,0]
[null,"Skema 6.10: Giftlinjen",0,0,0,0]
[null,"Skema 6.11: Tjenestemandspensioner",0,0,0,0]
[null,"Skema 6.12: Art 4.6 Betalinger til staten",0,0,0,0]
[null,"Skema 6.13: Art 4.7 Betalinger til kommuner",0,0,0,0]
[null,"Skema 6.14: Art 4.8 Betalinger til andre regioner",0,0,0,0]
[null,"Skema 6.15: Art 7.6 Betalinger fra staten",-4539,-21590.73113,-39641.579890000008,-48907.115479999993]
[null,"Skema 6.16: Art 7.7 Betalinger fra kommuner",-61583,-58164.548999999999,-48344.42,-47233.568000000007]
[null,"Skema 6.17: Art 7.8 Betalinger fra andre regioner",-45984,-72890.001000000004,-106838.88699999997,-67141.195999999996]
[null,"Skema 6.18: Betalinger til selvejende, private og udenlandske sygehuse",24095,24353.698,0,0]
[null,"Skema 6.19: Dækningsafgift/ejendomsskat",0,0,0,0]
[null,"Skema 6.20: Forsikringer/erstatninger",11439,6790.2540799999997,9188.2173500000008,6764.3924200000001]
[null,"Skema 6.21: Vederlagsfri Lab. –ydelser og andre ydelser til praksissektoren",0,0,0,0]
[null,"Skema 6.22: Patienttransport",4507,4204.1024100000004,3450.86751,3536.67634]
[null,"Skema 6.23: Serviceydelser til/fra andre institutioner eller sygehuse udenfor regionen",0,0,0,0]
[null,"Skema 6.24: Udgifter til eksternt finansierede forskning",0,0,0,0]
[null,"Skema 6.25: Forebyggelse rettet mod praksissektoren og kommuner",0,0,0,0]
[null,"Skema 6.26: Praksisreservelæger",0,0,0,0]
[null,"Skema 6.27: Præhospital",0,0,0,0]
[null,"Skema 6.28: Udgifter til Danske Regioner (Kontigent, MedCom, Fællesproj.)",0,0,0,470.18608]
[null,"Skema 6.29: Hospice",0,0,0,0]
[null,"Skema 6.30: Konsulenter(Praksis)",0,0,0,0]
[null,"Skema 6.31: Videnskabsetisk Komité",0,0,0,0]
[null,"Skema 6.32: Tolkebistand",3718,3276.9342900000011,3568.0539799999988,3821.3471599999984]
[null,"Skema 6.33: Dansk Center for Partikelterapi",0,0,0,0]
[null,"Skema 6.34: Politisk organisation – overførte udgifter fra funktion 4.10.01, 4.10.02 og 4.10.04",0,0,0,0]
[null,"Skema 6.35: Øvrige udgifter, Region Sjælland",0,0,0,0]
[null,"Skema 6.36: Sundhedsydelser ifm. specialsektor",0,0,0,0]
[null,"Skema 6.37: Udgifter til primær sundhed fra skema 2",0,0,0,0]
[null,"Skema 6.38: Udgifter til primær sundhed fra skema 3",0,0,0,0]
[null,"Skema 6.39: Særlige udgifter ifm. COVID-19",0,20498.951985000003,31233.329000000005,29569]
[null,"Skema 6.40: Udleveret udstyr/tilbehør ifm. cochlear implantater",0,0,0,0]
[null,"Skema 6.41: Luxturna-behandling, Rigshospitalet",0,0,0,0]
[null,"Skema 6.42: Udleveret medicin",0,0,0,0]
[null,"Skema 6.43: Udgifter ifm. sundhedsklynger",0,0,0,0]
[null,"Skema 6.44: Ukrainske patienter under særlov eller asyl",0,0,0,0]
[null,"Skema 6.45: Udgifter ifm. de særlige pladser i psykiatrien",80265,0,0,0]
[null,"Skema 6.46: Sikringsafdelingen, Region Sjælland",0,0,0,0]
[null,"Skema 6.47: Øvrige (Kan kun benyttes efter aftale med Sundhedsdatastyrelsen)",0,0,0,0]
[null,"Lukkede poster (må kun bruges af Sundhedsdatastyrelsen)",0,0,0,0]
[null,"I alt",18728,-87004.636814999991,-141218.48394999999,-113680.76813000001]

{"sheet":"Rapport SGH","index":8,"n_rows":9,"n_cols":9,"rows_kept":9,"cut":false,"hidden":false,"merged":[]}
[2023,"Skema 1","Skema 2","Skema 3","Skema 4","Skema 5","Skema 6","Skema 7","I alt"]
["Region Hovedstaden, Voksen psykiatrien",3240567.7358128401,454475.52126049338,51475.82191170266,0,186,6383,-22306.145474970439,{"$f":"(SUM(B2:D2))-(SUM(E2:H2))","v":3762256.2244600067}]
["Region Hovedstaden, Børn-unge psykiatrien",545312.60897715844,76477.720084641143,8662.1904043839349,0,0,12345,-3753.6084343347588,{"$f":"(SUM(B3:D3))-(SUM(E3:H3))","v":621861.12790051824}]
["Ikke fordelte udgifter i Region Hovedstaden, psykiatri",0,0,0,0,0,0,0,0]
[]
[2022]
["Region Hovedstaden, Voksen psykiatrien",3131438.8586945217,482440.45318552194,51243.477927333835,0,1262.8703700000001,-91720.859826515501,-19763.680653227133,{"$f":"(SUM(B7:D7))-(SUM(E7:H7))","v":3775344.4599171202}]
["Region Hovedstaden, Børn-unge psykiatrien",498498.7805354778,76800.300178919686,8157.5315405717583,0,0,4716.2230115155053,-3146.2120606862663,581886.60130413994]
["Ikke fordelte udgifter i Region Hovedstaden, psykiatri",0,0,0,0,0,0,0,0]

{"sheet":"Afstemning af ikke fordelte","index":9,"n_rows":9,"n_cols":2,"rows_kept":9,"cut":false,"hidden":false,"merged":[]}
["Afstemning af Ikke fordelte indtægter- og udgifter"]
["1.000 kr.","2023"]
["Skema 1",0]
["Skema 2",0]
["Skema 3",0]
["Skema 4",0]
["Skema 5",0]
["Skema 6",0]
["1+2+3-4-5-6",{"$f":"+B3+B4+B5-B6-B7-B8","v":0}]

{"sheet":"Nøgle","index":10,"n_rows":45,"n_cols":11,"rows_kept":45,"cut":false,"hidden":true,"merged":[]}
[]
[]
[null,null,null,null,2022]
[null,null,"Region Hovedstaden, Voksen psykiatrien"]
[null,null,"Region Hovedstaden, Voksen psykiatrien","Hovedart 1: Lønninger",{"$f":"+'Skema 1'!D7","v":2836633.6061363146},{"$f":"+E5/(E5+E15)","v":0.85889581741784227}]
[null,null,"Region Hovedstaden, Voksen psykiatrien","Hovedart 2: Varekøb",{"$f":"+'Skema 1'!D8","v":76995.154850220773},{"$f":"+E6/(E6+E16)","v":0.87386574042793463}]
[null,null,"Region Hovedstaden, Voksen psykiatrien","Hovedart 4: Tjenesteydelser m.v. ",{"$f":"+'Skema 1'!D9","v":444910.40696755261},0.89293080861320184]
[null,null,"Region Hovedstaden, Voksen psykiatrien","Hovedart 5: Tilskud og overførsler",{"$f":"+'Skema 1'!D10","v":2756.4434333124359},0.97587031674948366]
[null,null,"Region Hovedstaden, Voksen psykiatrien","Hovedart 6: Finansudgifter",{"$f":"+'Skema 1'!D11","v":0}]
[null,null,"Region Hovedstaden, Voksen psykiatrien","Hovedart 7: Indtægter",{"$f":"+'Skema 1'!D12","v":-229856.75269287868},0.87763159884287389]
[null,null,"Region Hovedstaden, Voksen psykiatrien","Hovedart 8: Finansindtægter",{"$f":"+'Skema 1'!D13","v":0}]
[null,null,"Region Hovedstaden, Voksen psykiatrien","Hovedart 9: Interne udgifter og indtægter",{"$f":"+'Skema 1'!D14","v":0}]
[null,null,"Region Hovedstaden, Voksen psykiatrien","I alt",{"$f":"+'Skema 1'!D15","v":3131438.8586945217},0.86267015302190653,null,559240.92365494289,{"$f":"+H13*F13","v":482440.45318552194},{"$f":"+'Skema 2'!D7+'Skema 2'!D8+'Skema 2'!D9+'Skema 2'!D10+'Skema 2'!D12","v":539546.22712117189},{"$f":"+I13-J13","v":-57105.773935649951}]
[null,null,"Region Hovedstaden, Børn-unge psykiatrien"]
[null,null,"Region Hovedstaden, Børn-unge psykiatrien","Hovedart 1: Lønninger",{"$f":"+'Skema 1'!D17","v":466017.947883685},{"$f":"+E15/(E5+E15)","v":0.14110418258215773}]
[null,null,"Region Hovedstaden, Børn-unge psykiatrien","Hovedart 2: Varekøb",{"$f":"+'Skema 1'!D18","v":11113.522819779218},{"$f":"+E16/(E6+E16)","v":0.12613425957206537}]
[null,null,"Region Hovedstaden, Børn-unge psykiatrien","Hovedart 4: Tjenesteydelser m.v. ",{"$f":"+'Skema 1'!D19","v":53348.139692447439},0.10706919138679814]
[null,null,"Region Hovedstaden, Børn-unge psykiatrien","Hovedart 5: Tilskud og overførsler",{"$f":"+'Skema 1'!D20","v":68.156706687564153},2.4129683250516357E-2]
[null,null,"Region Hovedstaden, Børn-unge psykiatrien","Hovedart 6: Finansudgifter",{"$f":"+'Skema 1'!D21","v":0}]
[null,null,"Region Hovedstaden, Børn-unge psykiatrien","Hovedart 7: Indtægter",{"$f":"+'Skema 1'!D22","v":-32048.986567121348},0.12236840115712608]
[null,null,"Region Hovedstaden, Børn-unge psykiatrien","Hovedart 8: Finansindtægter",{"$f":"+'Skema 1'!D23","v":0}]
[null,null,"Region Hovedstaden, Børn-unge psykiatrien","Hovedart 9: Interne udgifter og indtægter",{"$f":"+'Skema 1'!D24","v":0}]
[null,null,"Region Hovedstaden, Børn-unge psykiatrien","I alt",{"$f":"+'Skema 1'!D25","v":498498.7805354778},0.1373298469780935,null,559240.92365494289,{"$f":"+H23*F23","v":76800.470469420979},{"$f":"+'Skema 2'!D17+'Skema 2'!D18+'Skema 2'!D19+'Skema 2'!D22","v":79105.697822364818},{"$f":"+I23-J23","v":-2305.2273529438389}]
[]
[]
[null,null,null,null,2023]
[null,null,null,"Hovedart 1: Lønninger",{"$f":"+'Skema 1'!C7","v":2926779.6258045929},{"$f":"+E27/(E27+E37)","v":0.85165030361602001}]
[null,null,null,"Hovedart 2: Varekøb",{"$f":"+'Skema 1'!C8","v":62810.179046678451},{"$f":"+E28/(E28+E38)","v":0.89286172374693418}]
[null,null,null,"Hovedart 4: Tjenesteydelser m.v. ",{"$f":"+'Skema 1'!C9","v":472768.71548406512},0.9057372713957117]
[null,null,null,"Hovedart 5: Tilskud og overførsler",{"$f":"+'Skema 1'!C10","v":2404.893978949568},0.96501974204425545]
[null,null,null,"Hovedart 6: Finansudgifter",{"$f":"+'Skema 1'!C11","v":0}]
[null,null,null,"Hovedart 7: Indtægter",{"$f":"+'Skema 1'!C12","v":-224195.67850144597},0.91311736532646426]
[null,null,null,"Hovedart 8: Finansindtægter",{"$f":"+'Skema 1'!C13","v":0}]
[null,null,null,"Hovedart 9: Interne udgifter og indtægter",{"$f":"+'Skema 1'!C14","v":0}]
[null,null,null,"I alt",{"$f":"+'Skema 1'!C15","v":3240567.7358128401},0.85596147809383372,null,530953.24134513456,{"$f":"+H35*F35","v":454475.52126049338},{"$f":"+'Skema 2'!C7+'Skema 2'!C8+'Skema 2'!C9+'Skema 2'!C10+'Skema 2'!C12","v":473285.35433343943},{"$f":"+I35-J35","v":-18809.833072946058}]
[]
[null,null,null,"Hovedart 1: Lønninger",{"$f":"+'Skema 1'!C17","v":509818.25172540534},{"$f":"+E37/(E27+E37)","v":0.14834969638397999}]
[null,null,null,"Hovedart 2: Varekøb",{"$f":"+'Skema 1'!C18","v":7536.8605633215429},{"$f":"+E38/(E28+E38)","v":0.10713827625306582}]
[null,null,null,"Hovedart 4: Tjenesteydelser m.v. ",{"$f":"+'Skema 1'!C19","v":49202.423845934958},9.4262728604288304E-2]
[null,null,null,"Hovedart 5: Tilskud og overførsler",{"$f":"+'Skema 1'!C20","v":87.173151050431699},3.4980257955744436E-2]
[null,null,null,"Hovedart 6: Finansudgifter",{"$f":"+'Skema 1'!C21","v":0}]
[null,null,null,"Hovedart 7: Indtægter",{"$f":"+'Skema 1'!C22","v":-21332.100308553883},8.688263467353563E-2]
[null,null,null,"Hovedart 8: Finansindtægter",{"$f":"+'Skema 1'!C23","v":0}]
[null,null,null,"Hovedart 9: Interne udgifter og indtægter",{"$f":"+'Skema 1'!C24","v":0}]
[null,null,null,"I alt",{"$f":"+'Skema 1'!C25","v":545312.60897715844},0.14403852190616626,null,530953.24134513456,{"$f":"+H45*F45","v":76477.720084641143},{"$f":"+'Skema 2'!C17+'Skema 2'!C18+'Skema 2'!C19+'Skema 2'!C20+'Skema 2'!C22","v":68366.596963890668},{"$f":"+I45-J45","v":8111.1231207504752}]